fUSD/lending_fUSD_20250814
["ID","MTS","AMOUNT","RATE_DAILY","PERIOD"]
[379220536,1755195047649,-400.0,0.00027397,2]
[379220537,1755195047658,-400.0,0.00027397,2]
[379220538,1755195047668,-400.0,0.00027397,2]
[379220539,1755195047678,-400.0,0.00027397,2]
[379220540,1755195047689,-400.0,0.00027397,2]
[379220541,1755195047699,-400.0,0.00027397,2]
[379220542,1755195047709,-400.0,0.00027397,2]
[379220543,1755195047719,-400.0,0.00027397,2]
[379220544,1755195047728,-821.91,0.00027397,2]
[379220545,1755195047738,-400.0,0.00027397,2]
[379220546,1755195047748,-400.0,0.00027397,2]
[379220547,1755195047758,-400.0,0.00027397,2]
[379220548,1755195047767,-759.03,0.00027397,2]
[379220549,1755195047777,-796.2,0.00027397,2]
[379220550,1755195047786,-400.0,0.00027397,2]
[379220551,1755195047795,-400.0,0.00027397,2]
[379220552,1755195047804,-258.143482,0.00027397,7]
[379220553,1755195047814,-450.89,0.00027397,2]
[379220554,1755195047823,-1480.24,0.00027397,2]
[379220555,1755195047832,-400.0,0.00027397,2]
[379220556,1755195047841,-258.143482,0.00027397,7]
[379220557,1755195047850,-970.45,0.00027397,2]
[379220558,1755195047862,-499.551479,0.00027397,7]
[379220559,1755195047872,-400.0,0.00027397,2]
[379220560,1755195047881,-499.551479,0.00027397,7]
[379220561,1755195047890,-400.0,0.00027397,2]
[379220562,1755195047899,-499.551479,0.00027397,7]
[379220563,1755195047910,-499.551479,0.00027397,7]
[379220564,1755195047919,-499.551479,0.00027397,7]
[379220565,1755195047928,-400.0,0.00027397,2]
[379220566,1755195047941,-1871.44,0.00027397,2]
[379220567,1755195047952,-400.0,0.00027397,2]
[379220568,1755195047961,-631.46,0.00027397,2]
[379220569,1755195047971,-400.0,0.00027397,2]
[379220570,1755195047980,-499.551479,0.00027397,7]
[379220571,1755195047990,-499.551479,0.00027397,7]
[379220572,1755195047999,-499.551479,0.00027397,7]
[379220573,1755195048008,-499.551479,0.00027397,7]
[379220574,1755195048017,-499.551479,0.00027397,7]
[379220575,1755195048028,-1102.49,0.00027397,2]
[379220576,1755195048038,-151.0,0.00027397,2]
[379220577,1755195048047,-2066.24,0.00027397,2]
[379220578,1755195048056,-500.0,0.00027397,2]
[379220579,1755195048066,-448.43,0.00027397,2]
[379220580,1755195048075,-500.0,0.00027397,2]
[379220581,1755195048085,-400.0,0.00027397,2]
[379220582,1755195048094,-400.0,0.00027397,2]
[379220583,1755195048103,-1185.6,0.00027397,2]
[379220584,1755195048113,-400.0,0.00027397,2]
[379220585,1755195048122,-1146.82,0.00027397,2]
[379220586,1755195048132,-531.08,0.00027397,2]
[379220587,1755195048279,-400.0,0.00027397,2]
[379220588,1755195048290,-456.66,0.00027397,2]
[379220589,1755195048300,-400.0,0.00027397,2]
[379220590,1755195048310,-439.82,0.00027397,2]
[379220591,1755195048319,-400.0,0.00027397,2]
[379220592,1755195048329,-767.47,0.00027397,2]
[379220593,1755195048339,-1369.08,0.00027397,2]
[379220594,1755195048348,-2000.0,0.00027397,2]
[379220595,1755195048357,-2000.0,0.00027397,2]
[379220596,1755195048366,-1333.89,0.00027397,2]
[379220597,1755195048375,-2000.0,0.00027397,2]
[379220598,1755195048384,-2000.0,0.00027397,2]
[379220599,1755195048394,-2000.0,0.00027397,2]
[379220600,1755195048403,-2000.0,0.00027397,2]
[379220601,1755195048412,-2000.0,0.00027397,2]
[379220602,1755195048421,-2000.0,0.00027397,2]
[379220603,1755195048431,-2000.0,0.00027397,2]
[379220604,1755195048440,-2000.0,0.00027397,2]
[379220605,1755195048450,-400.0,0.00027397,2]
[379220606,1755195048460,-2000.0,0.00027397,2]
[379220607,1755195048469,-400.0,0.00027397,2]
[379220608,1755195048479,-2000.0,0.00027397,2]
[379220609,1755195048489,-2000.0,0.00027397,2]
[379220610,1755195048498,-2000.0,0.00027397,2]
[379220611,1755195048508,-400.0,0.00027397,2]
[379220612,1755195048517,-2000.0,0.00027397,2]
[379220613,1755195048530,-2000.0,0.00027397,2]
[379220614,1755195048539,-2000.0,0.00027397,2]
[379220615,1755195048548,-2000.0,0.00027397,2]
[379220616,1755195048558,-2000.0,0.00027397,2]
[379220617,1755195048568,-400.0,0.00027397,2]
[379220618,1755195048578,-2000.0,0.00027397,2]
[379220619,1755195048588,-2000.0,0.00027397,2]
[379220620,1755195048598,-400.0,0.00027397,2]
[379220621,1755195048608,-2000.0,0.00027397,2]
[379220622,1755195048618,-2000.0,0.00027397,2]
[379220623,1755195048628,-490.54876814,0.00027397,2]
[379220624,1755195048638,-429.56,0.00027397,2]
[379220625,1755195048649,-400.0,0.00027397,2]
[379220626,1755195048659,-897.53,0.00027397,2]
[379220627,1755195048669,-500.0,0.00027397,2]
[379220628,1755195048679,-961.93,0.00027397,2]
[379220629,1755195048690,-500.0,0.00027397,2]
[379220630,1755195048700,-500.0,0.00027397,2]
[379220631,1755195048710,-500.0,0.00027397,2]
[379220632,1755195048719,-500.0,0.00027397,2]
[379220633,1755195048729,-500.0,0.00027397,2]
[379220634,1755195048738,-503.93,0.00027397,2]
[379220635,1755195048747,-500.0,0.00027397,2]
[379220636,1755195048756,-500.0,0.00027397,2]
[379220637,1755195048765,-500.0,0.00027397,2]
[379220638,1755195048776,-500.0,0.00027397,2]
[379220639,1755195048785,-500.0,0.00027397,2]
[379220640,1755195048795,-500.0,0.00027397,2]
[379220641,1755195048804,-500.0,0.00027397,2]
[379220642,1755195048814,-400.0,0.00027397,2]
[379220643,1755195048823,-566.90781816,0.00027397,2]
[379220644,1755195048833,-895.52,0.00027397,2]
[379220645,1755195048842,-400.0,0.00027397,2]
[379220646,1755195048852,-402.28737314,0.00027397,2]
[379220647,1755195048862,-1013.86,0.00027397,2]
[379220648,1755195048874,-400.0,0.00027397,2]
[379220649,1755195048884,-454.9,0.00027397,2]
[379220650,1755195048893,-400.0,0.00027397,2]
[379220651,1755195048902,-535.9,0.00027397,2]
[379220652,1755195048913,-657.79,0.00027397,2]
[379220653,1755195048923,-800.51,0.00027397,2]
[379220654,1755195048932,-540.01,0.00027397,2]
[379220655,1755195048942,-400.0,0.00027397,2]
[379220656,1755195048952,-400.0,0.00027397,2]
[379220657,1755195048961,-1107.42,0.00027397,2]
[379220658,1755195048971,-632.46,0.00027397,2]
[379220659,1755195048981,-2524.59,0.00027397,2]
[379220660,1755195048990,-860.55,0.00027397,2]
[379220661,1755195048999,-400.0,0.00027397,2]
[379220662,1755195049009,-2708.67,0.00027397,2]
[379220663,1755195049018,-228.344162,0.00027397,7]
[379220664,1755195049029,-400.0,0.00027397,2]
[379220665,1755195049039,-228.344162,0.00027397,7]
[379220666,1755195049049,-228.344162,0.00027397,7]
[379220667,1755195049058,-228.344162,0.00027397,7]
[379220668,1755195049068,-169.82454236,0.00027397,2]
[379220669,1755195049077,-400.0,0.00027397,2]
[379220670,1755195049087,-228.344162,0.00027397,7]
[379220671,1755195049096,-228.344162,0.00027397,7]
[379220672,1755195049105,-228.344162,0.00027397,7]
[379220673,1755195049114,-228.344162,0.00027397,7]
[379220674,1755195049124,-925.25,0.00027397,2]
[379220675,1755195049133,-228.344162,0.00027397,7]
[379220676,1755195049143,-907.42,0.00027397,2]
[379220677,1755195049153,-228.344162,0.00027397,7]
[379220678,1755195049162,-475.36,0.00027397,2]
[379220679,1755195049171,-1744.05,0.00027397,2]
[379220680,1755195049181,-400.0,0.00027397,2]
[379220681,1755195049191,-400.0,0.00027397,2]
[379220682,1755195049200,-400.0,0.00027397,2]
[379220683,1755195049209,-228.344162,0.00027397,7]
[379220684,1755195049219,-228.344162,0.00027397,7]
[379220685,1755195049228,-228.344162,0.00027397,7]
[379220686,1755195049238,-318.835613,0.00027397,7]
[379220687,1755195049247,-228.344162,0.00027397,7]
[379220688,1755195049256,-318.835613,0.00027397,7]
[379220689,1755195049265,-228.344162,0.00027397,7]
[379220690,1755195049276,-318.835613,0.00027397,7]
[379220691,1755195049286,-228.344155,0.00027397,7]
[379220692,1755195049296,-318.835613,0.00027397,7]
[379220693,1755195049305,-400.0,0.00027397,2]
[379220694,1755195049315,-318.835613,0.00027397,7]
[379220695,1755195049325,-318.835613,0.00027397,7]
[379220696,1755195049334,-318.835613,0.00027397,7]
[379220697,1755195049344,-318.835613,0.00027397,7]
[379220698,1755195049353,-400.0,0.00027397,2]
[379220699,1755195049363,-400.0,0.00027397,2]
[379220700,1755195049372,-400.0,0.00027397,2]
[379220701,1755195049382,-400.0,0.00027397,2]
[379220702,1755195049391,-318.835613,0.00027397,7]
[379220703,1755195049400,-318.835613,0.00027397,7]
[379220704,1755195049410,-318.835613,0.00027397,7]
[379220705,1755195049420,-318.835613,0.00027397,7]
[379220706,1755195049430,-318.835613,0.00027397,7]
[379220707,1755195049439,-829.680978,0.00027397,7]
[379220708,1755195049448,-829.680978,0.00027397,7]
[379220709,1755195049458,-318.835613,0.00027397,7]
[379220710,1755195049467,-829.680978,0.00027397,7]
[379220711,1755195049476,-318.835613,0.00027397,7]
[379220712,1755195049486,-318.83562097,0.00027397,7]
[379220713,1755195049496,-400.0,0.00027397,2]
[379220714,1755195049505,-3141.74,0.00027397,2]
[379220715,1755195049514,-400.0,0.00027397,2]
[379220716,1755195049523,-829.680978,0.00027397,7]
[379220717,1755195049533,-400.0,0.00027397,2]
[379220718,1755195049542,-400.0,0.00027397,2]
[379220719,1755195049551,-829.680978,0.00027397,7]
[379220720,1755195049561,-829.680978,0.00027397,7]
[379220721,1755195049570,-618.76,0.00027397,2]
[379220722,1755195049580,-400.0,0.00027397,2]
[379220723,1755195049590,-2735.24,0.00027397,2]
[379220724,1755195049599,-400.0,0.00027397,2]
[379220725,1755195049609,-400.0,0.00027397,2]
[379220726,1755195049619,-695.99,0.00027397,2]
[379220727,1755195049628,-581.38,0.00027397,2]
[379220728,1755195049637,-400.0,0.00027397,2]
[379220729,1755195049646,-434.12,0.00027397,2]
[379220730,1755195049656,-1153.35,0.00027397,2]
[379220731,1755195049665,-400.0,0.00027397,2]
[379220732,1755195049675,-157.473091,0.00027397,7]
[379220733,1755195049685,-157.473091,0.00027397,7]
[379220734,1755195049695,-653.69,0.00027397,2]
[379220735,1755195049704,-757.41,0.00027397,2]
[379220736,1755195049714,-157.473091,0.00027397,7]
[379220737,1755195049723,-157.473091,0.00027397,7]
[379220738,1755195049732,-157.473091,0.00027397,7]
[379220739,1755195049742,-157.473091,0.00027397,7]
[379220740,1755195049751,-400.0,0.00027397,2]
[379220741,1755195049760,-157.473091,0.00027397,7]
[379220742,1755195049769,-157.473091,0.00027397,7]
[379220743,1755195049780,-400.0,0.00027397,2]
[379220744,1755195049789,-400.0,0.00027397,2]
[379220745,1755195049799,-400.0,0.00027397,2]
[379220746,1755195049808,-157.473091,0.00027397,7]
[379220747,1755195049817,-157.473091,0.00027397,7]
[379220748,1755195049826,-157.473091,0.00027397,7]
[379220749,1755195049835,-157.473091,0.00027397,7]
[379220750,1755195049845,-400.0,0.00027397,2]
[379220751,1755195049854,-314.81816,0.00027397,7]
[379220752,1755195049868,-157.473091,0.00027397,7]
[379220753,1755195049878,-314.81816,0.00027397,7]
[379220754,1755195049887,-400.0,0.00027397,2]
[379220755,1755195049897,-314.81816,0.00027397,7]
[379220756,1755195049907,-314.81816,0.00027397,7]
[379220757,1755195049916,-314.81816,0.00027397,7]
[379220758,1755195049925,-314.81816,0.00027397,7]
[379220759,1755195049934,-314.81816,0.00027397,7]
[379220760,1755195049943,-3093.54,0.00027397,2]
[379220761,1755195049953,-844.97,0.00027397,2]
[379220762,1755195049962,-400.0,0.00027397,2]
[379220763,1755195049971,-314.81816,0.00027397,7]
[379220764,1755195049980,-400.0,0.00027397,2]
[379220765,1755195049989,-314.81816,0.00027397,7]
[379220766,1755195049998,-314.81816,0.00027397,7]
[379220767,1755195050009,-314.81816,0.00027397,7]
[379220768,1755195050018,-314.81816,0.00027397,7]
[379220769,1755195050028,-314.81816,0.00027397,7]
[379220770,1755195050038,-314.818157,0.00027397,7]
[379220771,1755195050047,-400.0,0.00027397,2]
[379220772,1755195050056,-157.473091,0.00027397,7]
[379220773,1755195050066,-437.76,0.00027397,2]
[379220774,1755195050075,-157.473091,0.00027397,7]
[379220775,1755195050084,-475.17,0.00027397,2]
[379220776,1755195050093,-157.473097,0.00027397,7]
[379220777,1755195050103,-400.0,0.00027397,2]
[379220778,1755195050112,-2019.91,0.00027397,2]
[379220779,1755195050122,-1451.98,0.00027397,2]
[379220780,1755195050131,-410.38,0.00027397,2]
[379220781,1755195050140,-537.37606465,0.00027397,2]
[379220782,1755195050149,-400.0,0.00027397,2]
[379220783,1755195050159,-400.0,0.00027397,2]
[379220784,1755195050168,-400.0,0.00027397,2]
[379220785,1755195050179,-400.0,0.00027397,2]
[379220786,1755195050188,-400.0,0.00027397,2]
[379220787,1755195050197,-400.0,0.00027397,2]
[379220788,1755195050207,-2409.27,0.00027397,2]
[379220789,1755195050217,-400.0,0.00027397,2]
[379220790,1755195050227,-400.0,0.00027397,2]
[379220791,1755195050237,-400.0,0.00027397,2]
[379220792,1755195050246,-1001.69,0.00027397,2]
[379220793,1755195050255,-623.46,0.00027397,2]
[379220794,1755195050265,-407.58,0.00027397,2]
[379220795,1755195050274,-3520.29,0.00027397,2]
[379220796,1755195050283,-458.25,0.00027397,2]
[379220797,1755195050292,-579.2,0.00027397,2]
[379220798,1755195050301,-400.0,0.00027397,2]
[379220799,1755195050310,-3078.64,0.00027397,2]
[379220800,1755195050319,-2305.51,0.00027397,2]
[379220801,1755195050328,-400.0,0.00027397,2]
[379220802,1755195050337,-400.0,0.00027397,2]
[379220803,1755195050346,-884.91,0.00027397,2]
[379220804,1755195050355,-700.4,0.00027397,2]
[379220805,1755195050365,-805.36,0.00027397,2]
[379220806,1755195050374,-417.24,0.00027397,2]
[379220807,1755195050383,-400.0,0.00027397,2]
[379220808,1755195050393,-2277.59,0.00027397,2]
[379220809,1755195050403,-6455.03,0.00027397,2]
[379220810,1755195050412,-3606.54,0.00027397,2]
[379220811,1755195050422,-393.23059106,0.00027397,2]
[379220812,1755195050431,-400.0,0.00027397,2]
[379220813,1755195050441,-400.0,0.00027397,2]
[379220814,1755195050451,-459.35,0.00027397,2]
[379220815,1755195050459,-688.01,0.00027397,2]
[379220816,1755195050468,-400.0,0.00027397,2]
[379220817,1755195050477,-1829.12,0.00027397,2]
[379220818,1755195050486,-400.0,0.00027397,2]
[379220819,1755195050495,-400.0,0.00027397,2]
[379220820,1755195050505,-490.86,0.00027397,2]
[379220821,1755195050514,-400.0,0.00027397,2]
[379220822,1755195050523,-215.292819,0.00027397,7]
[379220823,1755195050534,-400.0,0.00027397,2]
[379220824,1755195050543,-215.292819,0.00027397,7]
[379220825,1755195050552,-215.292819,0.00027397,7]
[379220826,1755195050561,-215.292819,0.00027397,7]
[379220827,1755195050570,-400.0,0.00027397,2]
[379220828,1755195050580,-390.854273,0.00027397,7]
[379220829,1755195050589,-390.854273,0.00027397,7]
[379220830,1755195050598,-390.854273,0.00027397,7]
[379220831,1755195050607,-400.0,0.00027397,2]
[379220832,1755195050616,-662.04,0.00027397,2]
[379220833,1755195050625,-390.854273,0.00027397,7]
[379220834,1755195050634,-411.01,0.00027397,2]
[379220835,1755195050643,-390.854273,0.00027397,7]
[379220836,1755195050653,-215.292819,0.00027397,7]
[379220837,1755195050662,-401.98615503,0.00027397,2]
[379220838,1755195050671,-215.292819,0.00027397,7]
[379220839,1755195050680,-1555.88,0.00027397,2]
[379220840,1755195050689,-215.292819,0.00027397,7]
[379220841,1755195050698,-215.292819,0.00027397,7]
[379220842,1755195050707,-6998.61,0.00027397,2]
[379220843,1755195050716,-400.0,0.00027397,2]
[379220844,1755195050725,-6998.61,0.00027397,2]
[379220845,1755195050734,-6998.61,0.00027397,2]
[379220846,1755195050743,-400.0,0.00027397,2]
[379220847,1755195050753,-707.97,0.00027397,2]
[379220848,1755195050762,-2406.88,0.00027397,2]
[379220849,1755195050771,-400.0,0.00027397,2]
[379220850,1755195050781,-6998.61,0.00027397,2]
[379220851,1755195050790,-6998.61,0.00027397,2]
[379220852,1755195050799,-390.854273,0.00027397,7]
[379220853,1755195050808,-390.854273,0.00027397,7]
[379220854,1755195050818,-6998.61,0.00027397,2]
[379220855,1755195050827,-6998.61,0.00027397,2]
[379220856,1755195050836,-1583.82,0.00027397,2]
[379220857,1755195050847,-390.854273,0.00027397,7]
[379220858,1755195050856,-516.48,0.00027397,2]
[379220859,1755195050866,-6998.61,0.00027397,2]
[379220860,1755195050877,-390.854273,0.00027397,7]
[379220861,1755195050886,-6998.61,0.00027397,2]
[379220862,1755195050895,-6998.61,0.00027397,2]
[379220863,1755195050905,-390.854273,0.00027397,7]
[379220864,1755195050914,-6998.61,0.00027397,2]
[379220865,1755195050923,-6998.61,0.00027397,2]
[379220866,1755195050932,-6998.61,0.00027397,2]
[379220867,1755195050941,-6998.61,0.00027397,2]
[379220868,1755195050953,-6998.61,0.00027397,2]
[379220869,1755195050964,-6998.61,0.00027397,2]
[379220870,1755195050973,-490.99530666,0.00027397,2]
[379220871,1755195050983,-6998.61,0.00027397,2]
[379220872,1755195050992,-400.0,0.00027397,2]
[379220873,1755195051001,-6998.61,0.00027397,2]
[379220874,1755195051010,-155.888434,0.00027397,7]
[379220875,1755195051020,-155.888434,0.00027397,7]
[379220876,1755195051032,-155.888434,0.00027397,7]
[379220877,1755195051041,-400.0,0.00027397,2]
[379220878,1755195051051,-155.888434,0.00027397,7]
[379220879,1755195051060,-617.34,0.00027397,2]
[379220880,1755195051070,-579.72,0.00027397,2]
[379220881,1755195051079,-473.21,0.00027397,2]
[379220882,1755195051089,-155.888434,0.00027397,7]
[379220883,1755195051098,-400.0,0.00027397,2]
[379220884,1755195051108,-6965.37,0.00027397,2]
[379220885,1755195051118,-400.0,0.00027397,2]
[379220886,1755195051127,-400.0,0.00027397,2]
[379220887,1755195051137,-155.888434,0.00027397,7]
[379220888,1755195051146,-1000.0,0.00027397,2]
[379220889,1755195051156,-155.888434,0.00027397,7]
[379220890,1755195051166,-400.0,0.00027397,2]
[379220891,1755195051176,-1043.03,0.00027397,2]
[379220892,1755195051186,-155.888434,0.00027397,7]
[379220893,1755195051196,-2457.63,0.00027397,2]
[379220894,1755195051205,-1000.0,0.00027397,2]
[379220895,1755195051215,-3270.11,0.00027397,2]
[379220896,1755195051224,-1000.0,0.00027397,2]
[379220897,1755195051233,-155.888434,0.00027397,7]
[379220898,1755195051243,-1000.0,0.00027397,2]
[379220899,1755195051252,-155.888434,0.00027397,7]
[379220900,1755195051262,-1000.0,0.00027397,2]
[379220901,1755195051271,-777.54,0.00027397,2]
[379220902,1755195051282,-1000.0,0.00027397,2]
[379220903,1755195051291,-1000.0,0.00027397,2]
[379220904,1755195051301,-1000.0,0.00027397,2]
[379220905,1755195051310,-1004.14960173,0.00027397,2]
[379220906,1755195051320,-400.0,0.00027397,2]
[379220907,1755195051329,-400.0,0.00027397,2]
[379220908,1755195051339,-462.705023,0.00027397,7]
[379220909,1755195051349,-400.0,0.00027397,2]
[379220910,1755195051359,-462.705023,0.00027397,7]
[379220911,1755195051368,-462.705023,0.00027397,7]
[379220912,1755195051378,-462.705023,0.00027397,7]
[379220913,1755195051387,-462.705023,0.00027397,7]
[379220914,1755195051397,-400.0,0.00027397,2]
[379220915,1755195051407,-462.705023,0.00027397,7]
[379220916,1755195051416,-400.0,0.00027397,2]
[379220917,1755195051426,-462.705023,0.00027397,7]
[379220918,1755195051435,-400.0,0.00027397,2]
[379220919,1755195051445,-400.0,0.00027397,2]
[379220920,1755195051455,-462.705023,0.00027397,7]
[379220921,1755195051464,-462.705023,0.00027397,7]
[379220922,1755195051474,-1129.78,0.00027397,2]
[379220923,1755195051483,-1022.75,0.00027397,2]
[379220924,1755195051493,-462.705023,0.00027397,7]
[379220925,1755195051503,-462.705023,0.00027397,7]
[379220926,1755195051513,-500.0,0.00027397,2]
[379220927,1755195051523,-7181.81,0.00027397,2]
[379220928,1755195051534,-500.0,0.00027397,2]
[379220929,1755195051544,-462.705023,0.00027397,7]
[379220930,1755195051553,-500.0,0.00027397,2]
[379220931,1755195051563,-500.0,0.00027397,2]
[379220932,1755195051572,-500.0,0.00027397,2]
[379220933,1755195051582,-2189.04,0.00027397,2]
[379220934,1755195051591,-500.0,0.00027397,2]
[379220935,1755195051601,-462.705023,0.00027397,7]
[379220936,1755195051610,-500.0,0.00027397,2]
[379220937,1755195051620,-500.0,0.00027397,2]
[379220938,1755195051630,-462.705027,0.00027397,7]
[379220939,1755195051640,-492.63,0.00027397,2]
[379220940,1755195051650,-500.0,0.00027397,2]
[379220941,1755195051660,-605.69,0.00027397,2]
[379220942,1755195051670,-400.05,0.00027397,2]
[379220943,1755195051679,-400.0,0.00027397,2]
[379220944,1755195051689,-1636.11,0.00027397,2]
[379220945,1755195051698,-400.0,0.00027397,2]
[379220946,1755195051708,-5146.96,0.00027397,2]
[379220947,1755195051717,-400.0,0.00027397,2]
[379220948,1755195051727,-400.0,0.00027397,2]
[379220949,1755195051736,-3020.31,0.00027397,2]
[379220950,1755195051746,-400.0,0.00027397,2]
[379220951,1755195051755,-587.78,0.00027397,2]
[379220952,1755195051765,-425.37,0.00027397,2]
[379220953,1755195051775,-2541.41,0.00027397,2]
[379220954,1755195051786,-771.03,0.00027397,2]
[379220955,1755195051796,-1232.2,0.00027397,2]
[379220956,1755195051806,-486.73,0.00027397,2]
[379220957,1755195051816,-454.6,0.00027397,2]
[379220958,1755195051825,-1346.72,0.00027397,2]
[379220959,1755195051836,-609.96,0.00027397,2]
[379220960,1755195051845,-400.0,0.00027397,2]
[379220961,1755195051855,-325.47431579,0.00027397,2]
[379220962,1755195051866,-1493.08,0.00027397,2]
[379220963,1755195051877,-508.84,0.00027397,2]
[379220964,1755195051887,-400.0,0.00027397,2]
[379220965,1755195051896,-1766.42,0.00027397,2]
[379220966,1755195051907,-400.0,0.00027397,2]
[379220967,1755195051916,-623.09,0.00027397,2]
[379220968,1755195051927,-602.38,0.00027397,2]
[379220969,1755195051938,-408.23,0.00027397,2]
[379220970,1755195051949,-401.28460557,0.00027397,2]
[379220971,1755195051959,-400.0,0.00027397,2]
[379220972,1755195051968,-400.0,0.00027397,2]
[379220973,1755195051978,-400.0,0.00027397,2]
[379220974,1755195051988,-1987.58,0.00027397,2]
[379220975,1755195051998,-1461.49,0.00027397,2]
[379220976,1755195052007,-400.0,0.00027397,2]
[379220977,1755195052017,-400.0,0.00027397,2]
[379220978,1755195052029,-400.0,0.00027397,2]
[379220979,1755195052038,-400.0,0.00027397,2]
[379220980,1755195052048,-1173.07,0.00027397,2]
[379220981,1755195052058,-455.53,0.00027397,2]
[379220982,1755195052068,-938.04,0.00027397,2]
[379220983,1755195052078,-300.0,0.00027397,2]
[379220984,1755195052088,-494.71,0.00027397,2]
[379220985,1755195052098,-3219.94,0.00027397,2]
[379220986,1755195052108,-400.0,0.00027397,2]
[379220987,1755195052118,-5749.26,0.00027397,2]
[379220988,1755195052128,-856.05,0.00027397,2]
[379220989,1755195052138,-538.26642671,0.00027397,2]
[379220990,1755195052147,-400.0,0.00027397,2]
[379220991,1755195052158,-1019.6,0.00027397,2]
[379220992,1755195052169,-949.84,0.00027397,2]
[379220993,1755195052179,-400.0,0.00027397,2]
[379220994,1755195052190,-2298.34,0.00027397,2]
[379220995,1755195052199,-400.0,0.00027397,2]
[379220996,1755195052210,-636.36,0.00027397,2]
[379220997,1755195052220,-431.55,0.00027397,2]
[379220998,1755195052231,-932.61,0.00027397,2]
[379220999,1755195052240,-400.0,0.00027397,2]
[379221000,1755195052250,-400.0,0.00027397,2]
[379221001,1755195052260,-3411.32,0.00027397,2]
[379221002,1755195052271,-1319.78,0.00027397,2]
[379221003,1755195052282,-836.73,0.00027397,2]
[379221004,1755195052292,-419.288261,0.00027397,7]
[379221005,1755195052302,-500.0,0.00027397,10]
[379221006,1755195052312,-419.288261,0.00027397,7]
[379221007,1755195052323,-1224.94,0.00027397,2]
[379221008,1755195052332,-419.288261,0.00027397,7]
[379221009,1755195052342,-400.0,0.00027397,2]
[379221010,1755195052352,-419.288261,0.00027397,7]
[379221011,1755195052361,-419.288261,0.00027397,7]
[379221012,1755195052371,-1857.54,0.00027397,2]
[379221013,1755195052381,-2964.4,0.00027397,2]
[379221014,1755195052391,-769.39,0.00027397,2]
[379221015,1755195052401,-400.0,0.00027397,2]
[379221016,1755195052411,-3895.07,0.00027397,2]
[379221017,1755195052422,-400.0,0.00027397,2]
[379221018,1755195052434,-772.465308,0.00027397,7]
[379221019,1755195052445,-886.02,0.00027397,2]
[379221020,1755195052455,-400.0,0.00027397,2]
[379221021,1755195052465,-772.465308,0.00027397,7]
[379221022,1755195052476,-685.82,0.00027397,2]
[379221023,1755195052486,-258.551651,0.00027397,7]
[379221024,1755195052496,-772.465308,0.00027397,7]
[379221025,1755195052506,-419.288261,0.00027397,7]
[379221026,1755195052516,-803.97,0.00027397,2]
[379221027,1755195052526,-258.551651,0.00027397,7]
[379221028,1755195052537,-419.288261,0.00027397,7]
[379221029,1755195052547,-258.551651,0.00027397,7]
[379221030,1755195052557,-772.465308,0.00027397,7]
[379221031,1755195052566,-258.551651,0.00027397,7]
[379221032,1755195052576,-1057.72,0.00027397,2]
[379221033,1755195052584,-419.288261,0.00027397,7]
[379221034,1755195052593,-772.465308,0.00027397,7]
[379221035,1755195052602,-258.551651,0.00027397,7]